[Event "Titled Tuesday Blitz May 03 Late 2022"]
[White "Donchenko, Anatoly"]
[Black "Hnydiuk, Aleksander"]
[WhiteFideId "4106091"]
[BlackFideId "1109057"]
[WhiteElo "2339"]
[BlackElo "2374"]
[Result "0-1"]
[Round "04"]
[TimeControl "180+1"]
[Date "2022.05.03"]
[WhiteClock "0:01:01"]
[BlackClock "0:00:17"]

1. Nf3 {[%clk 0:03:00]}  Nf6 {[%clk 0:02:59]} 2. d4 {[%clk 0:03:00]}  g6 {[%clk 0:03:00]} 3. c4 {[%clk 0:02:57]}  Bg7 {[%clk 0:03:00]} 4. Nc3 {[%clk 0:02:57]}  O-O {[%clk 0:02:58]} 5. e4 {[%clk 0:02:56]}  d6 {[%clk 0:02:58]} 6. Be2 {[%clk 0:02:56]}  e5 {[%clk 0:02:58]} 7. dxe5 {[%clk 0:02:56]}  dxe5 {[%clk 0:02:58]} 8. Qxd8 {[%clk 0:02:56]}  Rxd8 {[%clk 0:02:58]} 9. Bg5 {[%clk 0:02:55]}  Na6 {[%clk 0:02:26]} 10. Nd5 {[%clk 0:02:53]}  Rd6 {[%clk 0:02:15]} 11. Nxf6+ {[%clk 0:02:50]}  Bxf6 {[%clk 0:02:14]} 12. Bxf6 {[%clk 0:02:50]}  Rxf6 {[%clk 0:02:15]} 13. O-O-O {[%clk 0:02:49]}  Bg4 {[%clk 0:02:12]} 14. Rd5 {[%clk 0:02:33]}  Bxf3 {[%clk 0:02:07]} 15. Bxf3 {[%clk 0:02:30]}  Re8 {[%clk 0:01:58]} 16. Rhd1 {[%clk 0:02:28]}  Rc6 {[%clk 0:01:54]} 17. b3 {[%clk 0:02:25]}  Nc5 {[%clk 0:01:52]} 18. Kb2 {[%clk 0:02:16]}  f6 {[%clk 0:01:45]} 19. Bg4 {[%clk 0:02:15]}  Re7 {[%clk 0:01:31]} 20. f3 {[%clk 0:02:14]}  h5 {[%clk 0:01:26]} 21. Bh3 {[%clk 0:02:13]}  Kf7 {[%clk 0:01:23]} 22. b4 {[%clk 0:02:09]}  Na4+ {[%clk 0:01:09]} 23. Kb3 {[%clk 0:02:08]}  Nb6 {[%clk 0:01:10]} 24. c5 {[%clk 0:01:55]}  Nxd5 {[%clk 0:01:05]} 25. exd5 {[%clk 0:01:55]}  Ra6 {[%clk 0:01:06]} 26. a4 {[%clk 0:01:54]}  f5 {[%clk 0:01:00]} 27. g3 {[%clk 0:01:53]}  Rf6 {[%clk 0:00:57]} 28. Bf1 {[%clk 0:01:49]}  e4 {[%clk 0:00:54]} 29. f4 {[%clk 0:01:48]}  e3 {[%clk 0:00:54]} 30. Be2 {[%clk 0:01:48]}  b6 {[%clk 0:00:49]} 31. Rd3 {[%clk 0:01:42]}  Re4 {[%clk 0:00:46]} 32. Kc3 {[%clk 0:01:39]}  bxc5 {[%clk 0:00:39]} 33. bxc5 {[%clk 0:01:39]}  Ra6 {[%clk 0:00:39]} 34. d6 {[%clk 0:01:30]}  cxd6 {[%clk 0:00:39]} 35. cxd6 {[%clk 0:01:29]}  Ke8 {[%clk 0:00:38]} 36. Rd5 {[%clk 0:01:25]}  Rc6+ {[%clk 0:00:31]} 37. Kd3 {[%clk 0:01:21]}  Kd7 {[%clk 0:00:28]} 38. Ra5 {[%clk 0:01:19]}  Rxd6+ {[%clk 0:00:27]} 39. Kc3 {[%clk 0:01:20]}  a6 {[%clk 0:00:20]} 40. Bxa6 {[%clk 0:01:13]}  Rxa6 {[%clk 0:00:18]} 41. Rxa6 {[%clk 0:01:11]}  e2 {[%clk 0:00:18]} 42. Ra7+ {[%clk 0:01:11]}  Kc6 {[%clk 0:00:16]} 43. Ra6+ {[%clk 0:01:11]}  Kb7 {[%clk 0:00:16]} 44. Rb6+ {[%clk 0:01:06]}  Kxb6 {[%clk 0:00:16]} 45. a5+ {[%clk 0:01:06]}  Kxa5 {[%clk 0:00:15]} 46. Kd2 {[%clk 0:01:06]}  e1=Q+ {[%clk 0:00:15]} 47. Kd3 {[%clk 0:01:05]}  Qe3+ {[%clk 0:00:15]} 48. Kc2 {[%clk 0:01:05]}  Rd4 {[%clk 0:00:15]} 49. g4 {[%clk 0:01:02]}  Rd2+ {[%clk 0:00:16]} 50. Kc1 {[%clk 0:01:01]}  Qe1# {[%clk 0:00:17]} 0-1


[Site "https://www.chess.com"]

[Event "Titled Tuesday Blitz May 03 Late 2022"]
[White "Fernandez Hernandez, Gerardo"]
[Black "Vujic, Mihailo"]
[WhiteFideId "2207400"]
[BlackFideId "918873"]
[WhiteElo "2199"]
[BlackElo "2256"]
[Result "1/2-1/2"]
[Round "04"]
[TimeControl "180+1"]
[Date "2022.05.03"]
[WhiteClock "0:02:02"]
[BlackClock "0:02:52"]

1. e4 {[%clk 0:03:00]}  e5 {[%clk 0:02:58]} 2. Nf3 {[%clk 0:03:00]}  Nc6 {[%clk 0:02:59]} 3. Bc4 {[%clk 0:03:00]}  Nf6 {[%clk 0:02:58]} 4. Ng5 {[%clk 0:03:00]}  d5 {[%clk 0:02:58]} 5. exd5 {[%clk 0:03:01]}  Nd4 {[%clk 0:02:57]} 6. c3 {[%clk 0:03:00]}  b5 {[%clk 0:02:56]} 7. Bf1 {[%clk 0:03:00]}  Nxd5 {[%clk 0:02:55]} 8. cxd4 {[%clk 0:02:58]}  Qxg5 {[%clk 0:02:55]} 9. Bxb5+ {[%clk 0:02:58]}  Kd8 {[%clk 0:02:55]} 10. O-O {[%clk 0:02:58]}  Bb7 {[%clk 0:02:56]} 11. Qf3 {[%clk 0:02:36]}  exd4 {[%clk 0:02:55]} 12. d3 {[%clk 0:02:28]}  Nf4 {[%clk 0:02:54]} 13. Qxb7 {[%clk 0:02:09]}  Nh3+ {[%clk 0:02:53]} 14. Kh1 {[%clk 0:02:08]}  Nxf2+ {[%clk 0:02:54]} 15. Kg1 {[%clk 0:02:03]}  Nh3+ {[%clk 0:02:54]} 16. Kh1 {[%clk 0:02:02]}  Nf2+ {[%clk 0:02:53]} 17. Kg1 {[%clk 0:02:02]}  Nh3+ {[%clk 0:02:53]} 18. Kh1 {[%clk 0:02:02]}  Nf2+ {[%clk 0:02:52]} 1/2-1/2


[Site "https://www.chess.com"]

[Event "Titled Tuesday Blitz May 03 Late 2022"]
[White "Gabrielian, Artur"]
[Black "Svane, Rasmus"]
[WhiteFideId "4131002"]
[BlackFideId "4657101"]
[WhiteElo "2440"]
[BlackElo "2645"]
[Result "0-1"]
[Round "04"]
[TimeControl "180+1"]
[Date "2022.05.03"]
[WhiteClock "0:00:02"]
[BlackClock "0:00:05"]

1. e4 {[%clk 0:03:00]}  c6 {[%clk 0:03:00]} 2. d4 {[%clk 0:03:00]}  d5 {[%clk 0:03:01]} 3. e5 {[%clk 0:03:01]}  Bf5 {[%clk 0:03:01]} 4. h4 {[%clk 0:03:01]}  h5 {[%clk 0:03:01]} 5. Bd3 {[%clk 0:03:01]}  Bxd3 {[%clk 0:03:01]} 6. Qxd3 {[%clk 0:03:02]}  Qa5+ {[%clk 0:03:02]} 7. Nd2 {[%clk 0:03:02]}  e6 {[%clk 0:03:02]} 8. Nf3 {[%clk 0:03:02]}  Nh6 {[%clk 0:03:02]} 9. O-O {[%clk 0:03:01]}  Nf5 {[%clk 0:03:03]} 10. a4 {[%clk 0:03:02]}  Be7 {[%clk 0:02:58]} 11. Nb3 {[%clk 0:03:01]}  Qa6 {[%clk 0:02:56]} 12. Qd1 {[%clk 0:03:01]}  Nd7 {[%clk 0:02:45]} 13. Bg5 {[%clk 0:02:59]}  f6 {[%clk 0:02:41]} 14. exf6 {[%clk 0:02:58]}  gxf6 {[%clk 0:02:40]} 15. Bf4 {[%clk 0:02:59]}  Kf7 {[%clk 0:02:38]} 16. Re1 {[%clk 0:02:58]}  Rae8 {[%clk 0:02:35]} 17. Nc1 {[%clk 0:02:52]}  Nf8 {[%clk 0:02:29]} 18. Nd3 {[%clk 0:02:49]}  Ng6 {[%clk 0:02:29]} 19. g3 {[%clk 0:02:41]}  Nxf4 {[%clk 0:02:10]} 20. Nxf4 {[%clk 0:02:41]}  Bd6 {[%clk 0:02:11]} 21. Nxh5 {[%clk 0:02:18]}  Reg8 {[%clk 0:01:55]} 22. Nxf6 {[%clk 0:01:55]}  Kxf6 {[%clk 0:01:43]} 23. Ng5 {[%clk 0:01:55]}  Nxh4 {[%clk 0:01:21]} 24. Qg4 {[%clk 0:01:29]}  Rxg5 {[%clk 0:00:50]} 25. Qxe6+ {[%clk 0:01:29]}  Kg7 {[%clk 0:00:51]} 26. Qd7+ {[%clk 0:01:24]}  Kh6 {[%clk 0:00:51]} 27. Re6+ {[%clk 0:01:19]}  Rg6 {[%clk 0:00:29]} 28. Qxd6 {[%clk 0:01:08]}  Rxe6 {[%clk 0:00:27]} 29. Qxe6+ {[%clk 0:01:07]}  Ng6 {[%clk 0:00:28]} 30. Kg2 {[%clk 0:01:01]}  Rf8 {[%clk 0:00:24]} 31. Rh1+ {[%clk 0:00:22]}  Kg7 {[%clk 0:00:24]} 32. Rh5 {[%clk 0:00:13]}  Rf6 {[%clk 0:00:11]} 33. Qd7+ {[%clk 0:00:13]}  Rf7 {[%clk 0:00:12]} 34. Qe6 {[%clk 0:00:13]}  c5 {[%clk 0:00:07]} 35. Qxd5 {[%clk 0:00:11]}  cxd4 {[%clk 0:00:05]} 36. Qxd4+ {[%clk 0:00:11]}  Qf6 {[%clk 0:00:06]} 37. Qxf6+ {[%clk 0:00:11]}  Kxf6 {[%clk 0:00:06]} 38. c3 {[%clk 0:00:10]}  Rd7 {[%clk 0:00:07]} 39. Rb5 {[%clk 0:00:10]}  Ne5 {[%clk 0:00:06]} 40. a5 {[%clk 0:00:10]}  Nc6 {[%clk 0:00:06]} 41. Rc5 {[%clk 0:00:10]}  a6 {[%clk 0:00:05]} 42. b4 {[%clk 0:00:10]}  Ke7 {[%clk 0:00:05]} 43. g4 {[%clk 0:00:11]}  Kd6 {[%clk 0:00:05]} 44. Kg3 {[%clk 0:00:11]}  Re7 {[%clk 0:00:04]} 45. g5 {[%clk 0:00:11]}  Re1 {[%clk 0:00:04]} 46. f4 {[%clk 0:00:11]}  Rg1+ {[%clk 0:00:03]} 47. Kf3 {[%clk 0:00:11]}  Ne7 {[%clk 0:00:03]} 48. Ke4 {[%clk 0:00:11]}  Re1+ {[%clk 0:00:03]} 49. Kf3 {[%clk 0:00:11]}  Nd5 {[%clk 0:00:03]} 50. g6 {[%clk 0:00:10]}  Rf1+ {[%clk 0:00:04]} 51. Kg4 {[%clk 0:00:11]}  Rg1+ {[%clk 0:00:03]} 52. Kh5 {[%clk 0:00:09]}  Nxf4+ {[%clk 0:00:04]} 53. Kh4 {[%clk 0:00:09]}  Nxg6+ {[%clk 0:00:04]} 54. Kh3 {[%clk 0:00:10]}  Ne5 {[%clk 0:00:05]} 55. Kh2 {[%clk 0:00:09]}  Nf3+ {[%clk 0:00:04]} 56. Kh3 {[%clk 0:00:09]}  Rg5 {[%clk 0:00:04]} 57. Rc4 {[%clk 0:00:08]}  Rg7 {[%clk 0:00:03]} 58. Rf4 {[%clk 0:00:06]}  Ne5 {[%clk 0:00:03]} 59. Rf6+ {[%clk 0:00:06]}  Kd5 {[%clk 0:00:04]} 60. Rb6 {[%clk 0:00:06]}  Rc7 {[%clk 0:00:04]} 61. Kh4 {[%clk 0:00:06]}  Nc4 {[%clk 0:00:04]} 62. Rg6 {[%clk 0:00:05]}  Nd6 {[%clk 0:00:04]} 63. Rg3 {[%clk 0:00:05]}  Ne4 {[%clk 0:00:04]} 64. Rd3+ {[%clk 0:00:04]}  Ke5 {[%clk 0:00:05]} 65. Rd8 {[%clk 0:00:02]}  Nxc3 {[%clk 0:00:03]} 66. Kg5 {[%clk 0:00:02]}  Nd5 {[%clk 0:00:03]} 67. Re8+ {[%clk 0:00:02]}  Kd4 {[%clk 0:00:04]} 68. Rd8 {[%clk 0:00:02]}  Kc4 {[%clk 0:00:05]} 69. Kf5 {[%clk 0:00:02]}  Nxb4 {[%clk 0:00:05]} 0-1


[Site "https://www.chess.com"]

[Event "Titled Tuesday Blitz May 03 Late 2022"]
[White "Gascon Del Nogal, Jose Rafael"]
[Black "Avalos Parra, Joao"]
[WhiteFideId "3902463"]
[BlackFideId "3402541"]
[WhiteElo "2473"]
[BlackElo "2173"]
[Result "1/2-1/2"]
[Round "04"]
[TimeControl "180+1"]
[Date "2022.05.03"]
[WhiteClock "0:00:09"]
[BlackClock "0:00:22"]

1. c4 {[%clk 0:02:57]}  e6 {[%clk 0:02:56]} 2. Nf3 {[%clk 0:02:55]}  Nf6 {[%clk 0:02:55]} 3. b3 {[%clk 0:02:54]}  b6 {[%clk 0:02:53]} 4. Bb2 {[%clk 0:02:54]}  Bb7 {[%clk 0:02:54]} 5. g3 {[%clk 0:02:51]}  c5 {[%clk 0:02:52]} 6. Bg2 {[%clk 0:02:51]}  Be7 {[%clk 0:02:52]} 7. O-O {[%clk 0:02:48]}  O-O {[%clk 0:02:53]} 8. Nc3 {[%clk 0:02:45]}  d6 {[%clk 0:02:51]} 9. Re1 {[%clk 0:02:38]}  Nc6 {[%clk 0:02:44]} 10. e4 {[%clk 0:02:34]}  Nd4 {[%clk 0:02:26]} 11. d3 {[%clk 0:02:22]}  a6 {[%clk 0:02:18]} 12. Nxd4 {[%clk 0:01:42]}  cxd4 {[%clk 0:02:19]} 13. Ne2 {[%clk 0:01:42]}  e5 {[%clk 0:02:04]} 14. h3 {[%clk 0:01:40]}  b5 {[%clk 0:02:00]} 15. Nc1 {[%clk 0:01:28]}  Rc8 {[%clk 0:01:57]} 16. f4 {[%clk 0:01:18]}  Nd7 {[%clk 0:01:57]} 17. a4 {[%clk 0:01:06]}  bxc4 {[%clk 0:01:53]} 18. dxc4 {[%clk 0:01:02]}  Nc5 {[%clk 0:01:50]} 19. Nd3 {[%clk 0:01:02]}  Kh8 {[%clk 0:01:44]} 20. Ba3 {[%clk 0:00:41]}  Nxd3 {[%clk 0:01:34]} 21. Qxd3 {[%clk 0:00:40]}  Qd7 {[%clk 0:01:29]} 22. Kh2 {[%clk 0:00:37]}  Rfe8 {[%clk 0:01:15]} 23. Rab1 {[%clk 0:00:31]}  Bf6 {[%clk 0:01:15]} 24. f5 {[%clk 0:00:29]}  g6 {[%clk 0:01:12]} 25. Rf1 {[%clk 0:00:27]}  Bg5 {[%clk 0:01:06]} 26. h4 {[%clk 0:00:24]}  Be3 {[%clk 0:01:06]} 27. Rbe1 {[%clk 0:00:21]}  Rg8 {[%clk 0:01:03]} 28. Rxe3 {[%clk 0:00:18]}  dxe3 {[%clk 0:01:03]} 29. Qxe3 {[%clk 0:00:18]}  Rcd8 {[%clk 0:00:43]} 30. Qg5 {[%clk 0:00:17]}  gxf5 {[%clk 0:00:28]} 31. Qf6+ {[%clk 0:00:15]}  Rg7 {[%clk 0:00:28]} 32. Rxf5 {[%clk 0:00:13]}  Rg8 {[%clk 0:00:27]} 33. Bc1 {[%clk 0:00:12]}  Qe6 {[%clk 0:00:26]} 34. Bg5 {[%clk 0:00:12]}  h6 {[%clk 0:00:19]} 35. Bxh6 {[%clk 0:00:05]}  Qxf6 {[%clk 0:00:18]} 36. Rxf6 {[%clk 0:00:06]}  Rxg3 {[%clk 0:00:17]} 37. Bh3 {[%clk 0:00:05]}  Bxe4 {[%clk 0:00:17]} 38. Bg5 {[%clk 0:00:05]}  R3xg5 {[%clk 0:00:17]} 39. hxg5 {[%clk 0:00:05]}  Rxg5 {[%clk 0:00:17]} 40. Rxf7 {[%clk 0:00:05]}  Rh5 {[%clk 0:00:18]} 41. Kg3 {[%clk 0:00:05]}  Rg5+ {[%clk 0:00:17]} 42. Kh4 {[%clk 0:00:05]}  Rg7 {[%clk 0:00:18]} 43. Rxg7 {[%clk 0:00:05]}  Kxg7 {[%clk 0:00:18]} 44. Kg5 {[%clk 0:00:06]}  Bc2 {[%clk 0:00:18]} 45. b4 {[%clk 0:00:06]}  Bxa4 {[%clk 0:00:19]} 46. c5 {[%clk 0:00:06]}  dxc5 {[%clk 0:00:19]} 47. bxc5 {[%clk 0:00:07]}  Bc6 {[%clk 0:00:19]} 48. Kf5 {[%clk 0:00:07]}  e4 {[%clk 0:00:19]} 49. Kf4 {[%clk 0:00:07]}  Kf7 {[%clk 0:00:19]} 50. Bg2 {[%clk 0:00:07]}  Kf6 {[%clk 0:00:20]} 51. Bxe4 {[%clk 0:00:06]}  Bxe4 {[%clk 0:00:20]} 52. Kxe4 {[%clk 0:00:07]}  Ke6 {[%clk 0:00:21]} 53. Kd4 {[%clk 0:00:08]}  Kd7 {[%clk 0:00:21]} 54. Kc4 {[%clk 0:00:09]}  Kc6 {[%clk 0:00:21]} 55. Kb4 {[%clk 0:00:09]}  a5+ {[%clk 0:00:22]} 56. Kxa5 {[%clk 0:00:09]}  Kxc5 {[%clk 0:00:22]} 1/2-1/2


[Site "https://www.chess.com"]

[Event "Titled Tuesday Blitz May 03 Late 2022"]
[White "Gombocz, Ferenc Jr."]
[Black "Prohorov, Olexandr"]
[WhiteFideId "775029"]
[BlackFideId "14105578"]
[WhiteElo "1913"]
[BlackElo "1993"]
[Result "0-1"]
[Round "04"]
[TimeControl "180+1"]
[Date "2022.05.03"]
[WhiteClock "0:00:59"]
[BlackClock "0:01:20"]

1. c4 {[%clk 0:03:00]}  g6 {[%clk 0:02:59]} 2. g3 {[%clk 0:03:01]}  Bg7 {[%clk 0:02:59]} 3. Bg2 {[%clk 0:03:01]}  f5 {[%clk 0:02:59]} 4. Nc3 {[%clk 0:03:01]}  Nf6 {[%clk 0:03:00]} 5. d3 {[%clk 0:03:01]}  O-O {[%clk 0:03:01]} 6. e4 {[%clk 0:03:01]}  d6 {[%clk 0:03:01]} 7. Nge2 {[%clk 0:03:02]}  Nc6 {[%clk 0:03:00]} 8. O-O {[%clk 0:03:02]}  e5 {[%clk 0:03:00]} 9. h3 {[%clk 0:02:58]}  Be6 {[%clk 0:03:00]} 10. Nd5 {[%clk 0:02:56]}  Qd7 {[%clk 0:03:00]} 11. Kh2 {[%clk 0:02:54]}  Rae8 {[%clk 0:02:59]} 12. Be3 {[%clk 0:02:53]}  h6 {[%clk 0:02:47]} 13. Rb1 {[%clk 0:02:30]}  g5 {[%clk 0:02:43]} 14. exf5 {[%clk 0:02:28]}  Bxf5 {[%clk 0:02:43]} 15. b4 {[%clk 0:02:27]}  e4 {[%clk 0:02:34]} 16. Nxf6+ {[%clk 0:02:20]}  Bxf6 {[%clk 0:02:33]} 17. dxe4 {[%clk 0:02:20]}  Bxe4 {[%clk 0:02:30]} 18. Bxe4 {[%clk 0:02:20]}  Rxe4 {[%clk 0:02:30]} 19. Qd5+ {[%clk 0:02:20]}  Qe6 {[%clk 0:02:25]} 20. b5 {[%clk 0:02:07]}  Qxd5 {[%clk 0:02:21]} 21. cxd5 {[%clk 0:02:07]}  Nb4 {[%clk 0:02:21]} 22. Rfc1 {[%clk 0:01:58]}  Nxd5 {[%clk 0:02:18]} 23. g4 {[%clk 0:01:45]}  Nxe3 {[%clk 0:02:15]} 24. fxe3 {[%clk 0:01:38]}  Rxe3 {[%clk 0:02:15]} 25. Ng1 {[%clk 0:01:37]}  Be5+ {[%clk 0:02:12]} 26. Kg2 {[%clk 0:01:37]}  Rg3+ {[%clk 0:02:09]} 27. Kh1 {[%clk 0:01:37]}  Rf2 {[%clk 0:02:05]} 28. Rf1 {[%clk 0:01:30]}  Rxa2 {[%clk 0:02:04]} 29. Rbc1 {[%clk 0:01:24]}  Bd4 {[%clk 0:01:25]} 30. Rf3 {[%clk 0:00:59]}  Rgg2 {[%clk 0:01:20]} 0-1


[Site "https://www.chess.com"]

[Event "Titled Tuesday Blitz May 03 Late 2022"]
[White "Gomez Dieguez, David"]
[Black "Baches Garcia, Guillermo"]
[WhiteFideId "22223630"]
[BlackFideId "2209764"]
[WhiteElo "2115"]
[BlackElo "2482"]
[Result "0-1"]
[Round "04"]
[TimeControl "180+1"]
[Date "2022.05.03"]
[WhiteClock "0:00:10"]
[BlackClock "0:00:10"]

1. c4 {[%clk 0:03:00]}  Nf6 {[%clk 0:02:56]} 2. Nf3 {[%clk 0:03:00]}  e6 {[%clk 0:02:56]} 3. Nc3 {[%clk 0:02:58]}  d5 {[%clk 0:02:56]} 4. e3 {[%clk 0:02:58]}  c5 {[%clk 0:02:55]} 5. cxd5 {[%clk 0:02:57]}  Nxd5 {[%clk 0:02:54]} 6. Nxd5 {[%clk 0:02:56]}  exd5 {[%clk 0:02:48]} 7. Bb5+ {[%clk 0:02:57]}  Bd7 {[%clk 0:02:38]} 8. Bxd7+ {[%clk 0:02:57]}  Nxd7 {[%clk 0:02:32]} 9. O-O {[%clk 0:02:54]}  Bd6 {[%clk 0:02:30]} 10. d4 {[%clk 0:02:53]}  c4 {[%clk 0:02:25]} 11. b3 {[%clk 0:02:52]}  b5 {[%clk 0:02:15]} 12. a4 {[%clk 0:02:50]}  a6 {[%clk 0:02:15]} 13. axb5 {[%clk 0:02:50]}  axb5 {[%clk 0:02:16]} 14. Rxa8 {[%clk 0:02:50]}  Qxa8 {[%clk 0:02:16]} 15. bxc4 {[%clk 0:02:50]}  dxc4 {[%clk 0:02:12]} 16. Qc2 {[%clk 0:02:37]}  O-O {[%clk 0:02:00]} 17. e4 {[%clk 0:02:32]}  Be7 {[%clk 0:01:54]} 18. Bg5 {[%clk 0:02:09]}  Bxg5 {[%clk 0:01:46]} 19. Nxg5 {[%clk 0:02:10]}  h6 {[%clk 0:01:44]} 20. Nf3 {[%clk 0:02:09]}  Nb6 {[%clk 0:01:38]} 21. Rb1 {[%clk 0:02:05]}  Qc6 {[%clk 0:01:35]} 22. d5 {[%clk 0:01:54]}  Qc5 {[%clk 0:01:35]} 23. Qb2 {[%clk 0:01:45]}  c3 {[%clk 0:01:31]} 24. Qb3 {[%clk 0:01:23]}  Na4 {[%clk 0:01:07]} 25. Ne5 {[%clk 0:01:10]}  Rc8 {[%clk 0:00:39]} 26. Rc1 {[%clk 0:00:43]}  Qd4 {[%clk 0:00:17]} 27. Nc6 {[%clk 0:00:39]}  Qd2 {[%clk 0:00:17]} 28. Qd1 {[%clk 0:00:28]}  Qxd1+ {[%clk 0:00:16]} 29. Rxd1 {[%clk 0:00:29]}  Kf8 {[%clk 0:00:09]} 30. Rc1 {[%clk 0:00:25]}  Ke8 {[%clk 0:00:07]} 31. Kf1 {[%clk 0:00:25]}  Kd7 {[%clk 0:00:08]} 32. Ke2 {[%clk 0:00:24]}  Rxc6 {[%clk 0:00:06]} 33. dxc6+ {[%clk 0:00:24]}  Kxc6 {[%clk 0:00:07]} 34. Kd3 {[%clk 0:00:24]}  Kc5 {[%clk 0:00:07]} 35. f4 {[%clk 0:00:24]}  b4 {[%clk 0:00:07]} 36. e5 {[%clk 0:00:23]}  Nb6 {[%clk 0:00:06]} 37. f5 {[%clk 0:00:18]}  Kd5 {[%clk 0:00:06]} 38. Re1 {[%clk 0:00:12]}  Nd7 {[%clk 0:00:06]} 39. e6 {[%clk 0:00:12]}  fxe6 {[%clk 0:00:07]} 40. fxe6 {[%clk 0:00:13]}  Nc5+ {[%clk 0:00:07]} 41. Kc2 {[%clk 0:00:12]}  Nxe6 {[%clk 0:00:08]} 42. Kb3 {[%clk 0:00:11]}  Nc5+ {[%clk 0:00:07]} 43. Kxb4 {[%clk 0:00:09]}  Nd3+ {[%clk 0:00:07]} 44. Kxc3 {[%clk 0:00:09]}  Nxe1 {[%clk 0:00:08]} 45. Kd2 {[%clk 0:00:10]}  Nxg2 {[%clk 0:00:08]} 46. Ke2 {[%clk 0:00:10]}  Nf4+ {[%clk 0:00:09]} 47. Kf3 {[%clk 0:00:11]}  Ne6 {[%clk 0:00:09]} 48. Kg4 {[%clk 0:00:11]}  Ke5 {[%clk 0:00:10]} 49. Kh5 {[%clk 0:00:11]}  Kf6 {[%clk 0:00:11]} 50. Kg4 {[%clk 0:00:11]}  Nf8 {[%clk 0:00:10]} 51. h4 {[%clk 0:00:10]}  Ng6 {[%clk 0:00:11]} 52. Kh5 {[%clk 0:00:09]}  Nxh4 {[%clk 0:00:10]} 53. Kg4 {[%clk 0:00:10]}  Nf5 {[%clk 0:00:10]} 0-1


[Site "https://www.chess.com"]

[Event "Titled Tuesday Blitz May 03 Late 2022"]
[White "Hamley, Ryan"]
[Black "Thybo, Jesper Sondergaard"]
[WhiteFideId "30959497"]
[BlackFideId "1438832"]
[WhiteElo "2523"]
[BlackElo "2316"]
[Result "1-0"]
[Round "04"]
[TimeControl "180+1"]
[Date "2022.05.03"]
[WhiteClock "0:01:10"]
[BlackClock "0:01:10"]

1. d4 {[%clk 0:03:00]}  Nf6 {[%clk 0:03:00]} 2. c4 {[%clk 0:03:00]}  b6 {[%clk 0:03:00]} 3. Nc3 {[%clk 0:02:59]}  Bb7 {[%clk 0:03:00]} 4. Qc2 {[%clk 0:02:59]}  d5 {[%clk 0:03:00]} 5. cxd5 {[%clk 0:02:53]}  Nxd5 {[%clk 0:03:01]} 6. e4 {[%clk 0:02:51]}  Nxc3 {[%clk 0:03:01]} 7. bxc3 {[%clk 0:02:51]}  e5 {[%clk 0:03:01]} 8. d5 {[%clk 0:02:49]}  Bd6 {[%clk 0:02:56]} 9. Ne2 {[%clk 0:02:37]}  O-O {[%clk 0:02:52]} 10. Ng3 {[%clk 0:02:37]}  c6 {[%clk 0:02:47]} 11. c4 {[%clk 0:02:34]}  cxd5 {[%clk 0:02:46]} 12. cxd5 {[%clk 0:02:34]}  Na6 {[%clk 0:02:45]} 13. Bd2 {[%clk 0:02:33]}  Rc8 {[%clk 0:02:21]} 14. Qb3 {[%clk 0:02:27]}  Nc5 {[%clk 0:02:18]} 15. Qf3 {[%clk 0:02:00]}  f5 {[%clk 0:02:08]} 16. Nxf5 {[%clk 0:01:49]}  g6 {[%clk 0:01:58]} 17. Qg4 {[%clk 0:01:44]}  Qd7 {[%clk 0:01:34]} 18. Be2 {[%clk 0:01:39]}  Kh8 {[%clk 0:01:27]} 19. Nxd6 {[%clk 0:01:38]}  Qxd6 {[%clk 0:01:23]} 20. O-O {[%clk 0:01:36]}  Ne6 {[%clk 0:01:19]} 21. Qxe6 {[%clk 0:01:32]}  Qxe6 {[%clk 0:01:18]} 22. dxe6 {[%clk 0:01:33]}  Rc2 {[%clk 0:01:18]} 23. Bb4 {[%clk 0:01:12]}  Re8 {[%clk 0:01:18]} 24. Bd3 {[%clk 0:01:12]}  Rc7 {[%clk 0:01:13]} 25. Bd6 {[%clk 0:01:10]}  Rc3 {[%clk 0:01:10]} 26. Bxe5+ {[%clk 0:01:10]} 1-0


[Site "https://www.chess.com"]

[Event "Titled Tuesday Blitz May 03 Late 2022"]
[White "Herrera Reyes, Jose Antonio"]
[Black "Toncheva, Nadya"]
[WhiteFideId "2274914"]
[BlackFideId "2924056"]
[WhiteElo "2361"]
[BlackElo "1884"]
[Result "1-0"]
[Round "04"]
[TimeControl "180+1"]
[Date "2022.05.03"]
[WhiteClock "0:01:01"]
[BlackClock "0:00:14"]

1. Nf3 {[%clk 0:03:00]}  Nf6 {[%clk 0:02:55]} 2. g3 {[%clk 0:03:00]}  d5 {[%clk 0:02:49]} 3. Bg2 {[%clk 0:03:00]}  Bf5 {[%clk 0:02:49]} 4. d3 {[%clk 0:02:59]}  e6 {[%clk 0:02:47]} 5. O-O {[%clk 0:03:00]}  h6 {[%clk 0:02:47]} 6. c3 {[%clk 0:03:00]}  c5 {[%clk 0:02:47]} 7. Qb3 {[%clk 0:03:00]}  Qc8 {[%clk 0:02:35]} 8. c4 {[%clk 0:02:57]}  Nc6 {[%clk 0:02:29]} 9. cxd5 {[%clk 0:02:56]}  exd5 {[%clk 0:02:30]} 10. Nc3 {[%clk 0:02:56]}  Be6 {[%clk 0:02:20]} 11. Qa4 {[%clk 0:02:45]}  Be7 {[%clk 0:02:19]} 12. d4 {[%clk 0:02:41]}  c4 {[%clk 0:02:11]} 13. Ne5 {[%clk 0:02:15]}  O-O {[%clk 0:02:04]} 14. Nxc6 {[%clk 0:02:13]}  bxc6 {[%clk 0:02:04]} 15. e4 {[%clk 0:02:13]}  Bh3 {[%clk 0:01:53]} 16. exd5 {[%clk 0:02:03]}  Bxg2 {[%clk 0:01:44]} 17. Kxg2 {[%clk 0:02:04]}  cxd5 {[%clk 0:01:45]} 18. Re1 {[%clk 0:02:04]}  Bd6 {[%clk 0:01:37]} 19. Qd1 {[%clk 0:01:38]}  Bb4 {[%clk 0:01:05]} 20. Re5 {[%clk 0:01:26]}  Bxc3 {[%clk 0:01:01]} 21. bxc3 {[%clk 0:01:27]}  Ne4 {[%clk 0:00:58]} 22. Qc2 {[%clk 0:01:26]}  Qc6 {[%clk 0:00:47]} 23. f3 {[%clk 0:01:23]}  Nd6 {[%clk 0:00:38]} 24. Ba3 {[%clk 0:01:22]}  Rfe8 {[%clk 0:00:37]} 25. Rae1 {[%clk 0:01:21]}  Nb5 {[%clk 0:00:33]} 26. Bc5 {[%clk 0:01:18]}  h5 {[%clk 0:00:24]} 27. Rxh5 {[%clk 0:01:12]}  g6 {[%clk 0:00:20]} 28. Rhe5 {[%clk 0:01:11]}  Kg7 {[%clk 0:00:18]} 29. a4 {[%clk 0:01:10]}  Nc7 {[%clk 0:00:16]} 30. a5 {[%clk 0:01:04]}  Rh8 {[%clk 0:00:16]} 31. Re7 {[%clk 0:01:01]}  Ne6 {[%clk 0:00:14]} 32. R1xe6 {[%clk 0:01:01]} 1-0


[Site "https://www.chess.com"]